[Event "Early-Titled-Tuesday-Blitz-May-14-2024"]
[Site "Chess.com"]
[Date "2024.05.14"]
[Round "11"]
[White "Niilo1"]
[Black "DumbKing75"]
[Result "1-0"]
[WhiteElo "2377"]
[BlackElo "2646"]
[TimeControl "180+1"]
[EndTime "10:07:39 PDT"]
[Termination "Niilo1 won by resignation"]

1. e4 {[%clk 0:03:00.9]} 1... c5 {[%clk 0:02:55.9]} 2. Nf3 {[%clk 0:03:00.9]}
2... d6 {[%clk 0:02:55.9]} 3. d4 {[%clk 0:03:00.6]} 3... cxd4 {[%clk 0:02:56.8]}
4. Nxd4 {[%clk 0:03:01.3]} 4... Nf6 {[%clk 0:02:57.6]} 5. Nc3 {[%clk 0:03:01.7]}
5... Nc6 {[%clk 0:02:58.3]} 6. Bg5 {[%clk 0:03:01]} 6... e6 {[%clk 0:02:58.4]}
7. Qd2 {[%clk 0:03:00.2]} 7... a6 {[%clk 0:02:58.9]} 8. O-O-O {[%clk 0:02:59.5]}
8... Bd7 {[%clk 0:02:59.5]} 9. f4 {[%clk 0:02:59.4]} 9... b5 {[%clk 0:02:58.7]}
10. Bxf6 {[%clk 0:02:51.5]} 10... gxf6 {[%clk 0:02:59.6]} 11. Kb1 {[%clk
0:02:49.2]} 11... Qb6 {[%clk 0:02:59.8]} 12. Nf3 {[%clk 0:02:40.5]} 12... b4
{[%clk 0:02:51.4]} 13. Ne2 {[%clk 0:02:40.4]} 13... a5 {[%clk 0:02:42.7]} 14. f5
{[%clk 0:02:29.3]} 14... a4 {[%clk 0:01:53.4]} 15. fxe6 {[%clk 0:02:27.5]} 15...
fxe6 {[%clk 0:01:54.3]} 16. g3 {[%clk 0:02:24.7]} 16... O-O-O {[%clk 0:01:33.1]}
17. Bh3 {[%clk 0:02:18.1]} 17... Ne5 {[%clk 0:00:45.3]} 18. Nfd4 {[%clk
0:02:12.9]} 18... Re8 {[%clk 0:00:45]} 19. Rhf1 {[%clk 0:02:04.6]} 19... Bg7
{[%clk 0:00:39.1]} 20. Nf4 {[%clk 0:01:57.8]} 20... Bh6 {[%clk 0:00:35.9]} 21.
Qe1 {[%clk 0:01:23.6]} 21... Bxf4 {[%clk 0:00:31.4]} 22. Rxf4 {[%clk 0:01:20.3]}
22... Rhf8 {[%clk 0:00:15]} 23. Qe2 {[%clk 0:01:18.8]} 23... Qc5 {[%clk
0:00:10.2]} 24. c3 {[%clk 0:01:12.3]} 24... Kb8 {[%clk 0:00:07.5]} 25. cxb4
{[%clk 0:01:11.6]} 25... Qxb4 {[%clk 0:00:08.4]} 26. Nc2 {[%clk 0:01:07.5]}
26... Qb6 {[%clk 0:00:07.8]} 27. Rd4 {[%clk 0:01:03]} 27... Ka8 {[%clk
0:00:06.5]} 28. Rf1 {[%clk 0:00:58.5]} 28... Rc8 {[%clk 0:00:06.4]} 29. Rb4
{[%clk 0:00:57.9]} 29... Qc5 {[%clk 0:00:05.8]} 30. Qa6+ {[%clk 0:00:56.9]}
30... Qa7 {[%clk 0:00:05.8]} 31. Qxd6 {[%clk 0:00:57.2]} 31... Rc6 {[%clk
0:00:05]} 32. Qxf8+ {[%clk 0:00:56.7]} 32... Rc8 {[%clk 0:00:05.5]} 33. Qxf6
{[%clk 0:00:56.5]} 33... Nd3 {[%clk 0:00:05.2]} 34. Rd4 {[%clk 0:00:52.4]} 34...
Nc5 {[%clk 0:00:04.1]} 35. Rfd1 {[%clk 0:00:48.8]} 35... Rb8 {[%clk 0:00:04.6]}
36. Qe7 {[%clk 0:00:44.5]} 36... Qb6 {[%clk 0:00:04.6]} 37. Rb4 {[%clk 0:00:43]}
37... Qc7 {[%clk 0:00:05]} 38. Rxb8+ {[%clk 0:00:42]} 38... Kxb8 {[%clk
0:00:05.9]} 39. Qd6 {[%clk 0:00:39.6]} 1-0

[Event "Early-Titled-Tuesday-Blitz-May-14-2024"]
[Site "Chess.com"]
[Date "2024.05.14"]
[Round "11"]
[White "ViktoriyaTarasova"]
[Black "DvaHrasta"]
[Result "0-1"]
[WhiteElo "2327"]
[BlackElo "2514"]
[TimeControl "180+1"]
[EndTime "10:07:40 PDT"]
[Termination "DvaHrasta won by resignation"]

1. d4 {[%clk 0:03:00.9]} 1... Nf6 {[%clk 0:02:59.5]} 2. c4 {[%clk 0:03:00.1]}
2... e6 {[%clk 0:02:59.6]} 3. Nc3 {[%clk 0:02:59.4]} 3... Bb4 {[%clk 0:02:59]}
4. Nf3 {[%clk 0:02:59.6]} 4... b6 {[%clk 0:02:55.8]} 5. e3 {[%clk 0:02:58.9]}
5... Bb7 {[%clk 0:02:51.6]} 6. Bd3 {[%clk 0:02:58.9]} 6... O-O {[%clk
0:02:50.4]} 7. O-O {[%clk 0:02:57.9]} 7... d5 {[%clk 0:02:50.6]} 8. cxd5 {[%clk
0:02:57.4]} 8... exd5 {[%clk 0:02:50.2]} 9. Ne5 {[%clk 0:02:57.7]} 9... Bd6
{[%clk 0:02:46]} 10. f4 {[%clk 0:02:57.5]} 10... a6 {[%clk 0:02:40.4]} 11. Qf3
{[%clk 0:02:56.1]} 11... c5 {[%clk 0:02:38.3]} 12. Qh3 {[%clk 0:02:55.5]} 12...
Nc6 {[%clk 0:02:32.6]} 13. g4 {[%clk 0:02:54.8]} 13... cxd4 {[%clk 0:02:26.2]}
14. exd4 {[%clk 0:02:54.4]} 14... Nxd4 {[%clk 0:02:25.6]} 15. g5 {[%clk
0:02:53.2]} 15... Ne4 {[%clk 0:02:24.2]} 16. Be3 {[%clk 0:01:34.2]} 16... Ne6
{[%clk 0:02:12.2]} 17. Bxe4 {[%clk 0:01:22.8]} 17... dxe4 {[%clk 0:02:05.8]} 18.
Rad1 {[%clk 0:01:12.1]} 18... Qe7 {[%clk 0:01:59]} 19. Ng4 {[%clk 0:01:02.3]}
19... Bc5 {[%clk 0:01:45.3]} 20. Kh1 {[%clk 0:01:01.4]} 20... Rad8 {[%clk
0:01:39.8]} 21. Qg3 {[%clk 0:00:59.9]} 21... Rd3 {[%clk 0:01:31.6]} 22. Nf6+
{[%clk 0:00:28.3]} 22... Kh8 {[%clk 0:01:28.6]} 23. Ncd5 {[%clk 0:00:16.8]}
23... Bxd5 {[%clk 0:01:14.5]} 24. Nxd5 {[%clk 0:00:17]} 24... Qb7 {[%clk
0:01:09.3]} 25. Rxd3 {[%clk 0:00:12.6]} 25... exd3 {[%clk 0:01:06.3]} 26. Qf3
{[%clk 0:00:13.3]} 26... Rd8 {[%clk 0:00:59.4]} 27. Nc3 {[%clk 0:00:13.2]} 27...
Qxf3+ {[%clk 0:00:52.9]} 28. Rxf3 {[%clk 0:00:13.4]} 28... d2 {[%clk 0:00:51.1]}
29. Nd1 {[%clk 0:00:13.7]} 29... Rd3 {[%clk 0:00:46.2]} 30. f5 {[%clk
0:00:11.2]} 30... Nxg5 {[%clk 0:00:41.6]} 31. Rg3 {[%clk 0:00:09.7]} 31... Bxe3
{[%clk 0:00:35.7]} 32. Rxe3 {[%clk 0:00:09.5]} 32... Rxe3 {[%clk 0:00:33.6]} 33.
Nxe3 {[%clk 0:00:10.2]} 33... Ne4 {[%clk 0:00:33.6]} 34. Nd1 {[%clk 0:00:10.4]}
34... Nd6 {[%clk 0:00:31.2]} 35. Kg2 {[%clk 0:00:09.9]} 35... Nxf5 {[%clk
0:00:30.7]} 36. Kf2 {[%clk 0:00:10.6]} 36... Nd6 {[%clk 0:00:28.5]} 37. Ke2
{[%clk 0:00:11.1]} 37... Ne4 {[%clk 0:00:28.5]} 38. Ke3 {[%clk 0:00:11.4]} 38...
f5 {[%clk 0:00:28.5]} 39. Kf4 {[%clk 0:00:11.6]} 39... g6 {[%clk 0:00:28.6]} 0-1

[Event "Early-Titled-Tuesday-Blitz-May-14-2024"]
[Site "Chess.com"]
[Date "2024.05.14"]
[Round "11"]
[White "rasmussvane"]
[Black "GMG"]
[Result "1-0"]
[WhiteElo "2984"]
[BlackElo "2814"]
[TimeControl "180+1"]
[EndTime "10:07:44 PDT"]
[Termination "rasmussvane won on time"]

1. Nf3 {[%clk 0:02:58.5]} 1... Nf6 {[%clk 0:03:00]} 2. g3 {[%clk 0:02:57.1]}
2... b5 {[%clk 0:02:58.7]} 3. Bg2 {[%clk 0:02:52.9]} 3... Bb7 {[%clk 0:02:59.1]}
4. d4 {[%clk 0:02:53.6]} 4... e6 {[%clk 0:02:58.9]} 5. Bg5 {[%clk 0:02:53.7]}
5... d6 {[%clk 0:02:53.5]} 6. Qd3 {[%clk 0:02:50.1]} 6... a6 {[%clk 0:02:51.3]}
7. a4 {[%clk 0:02:48.4]} 7... b4 {[%clk 0:02:46.5]} 8. Nbd2 {[%clk 0:02:48.2]}
8... Nbd7 {[%clk 0:02:42.5]} 9. O-O {[%clk 0:02:47.8]} 9... h6 {[%clk
0:02:34.8]} 10. Bxf6 {[%clk 0:02:47.3]} 10... Nxf6 {[%clk 0:02:35.7]} 11. e4
{[%clk 0:02:47.7]} 11... Be7 {[%clk 0:02:35.8]} 12. c3 {[%clk 0:02:46.3]} 12...
bxc3 {[%clk 0:02:34.2]} 13. bxc3 {[%clk 0:02:47.2]} 13... Rb8 {[%clk 0:02:28.5]}
14. Rfb1 {[%clk 0:02:39.4]} 14... O-O {[%clk 0:02:27.4]} 15. e5 {[%clk
0:02:24.3]} 15... Nd7 {[%clk 0:02:12.6]} 16. Nc4 {[%clk 0:02:02.6]} 16... Bd5
{[%clk 0:01:45.3]} 17. exd6 {[%clk 0:01:55.4]} 17... cxd6 {[%clk 0:01:44.2]} 18.
Ne3 {[%clk 0:01:44.2]} 18... Bxf3 {[%clk 0:01:32.4]} 19. Bxf3 {[%clk 0:01:45.1]}
19... Qa5 {[%clk 0:01:32.4]} 20. Bc6 {[%clk 0:01:41.4]} 20... Nf6 {[%clk
0:01:29.6]} 21. d5 {[%clk 0:01:33.9]} 21... exd5 {[%clk 0:00:44.5]} 22. Nf5
{[%clk 0:01:14.3]} 22... Qc7 {[%clk 0:00:35.8]} 23. Qxa6 {[%clk 0:01:07.1]}
23... g6 {[%clk 0:00:31.3]} 24. Nxe7+ {[%clk 0:00:58.8]} 24... Qxe7 {[%clk
0:00:32.2]} 25. a5 {[%clk 0:00:54.4]} 25... Qc7 {[%clk 0:00:23.2]} 26. Rb7
{[%clk 0:00:51.9]} 26... Qd8 {[%clk 0:00:13.5]} 27. Qb5 {[%clk 0:00:47.7]} 27...
Rc8 {[%clk 0:00:12.9]} 28. a6 {[%clk 0:00:47]} 28... Ne4 {[%clk 0:00:11.2]} 29.
Bxd5 {[%clk 0:00:36.2]} 29... Nxc3 {[%clk 0:00:09]} 30. Qd3 {[%clk 0:00:36.4]}
30... Qf6 {[%clk 0:00:05.3]} 31. Re1 {[%clk 0:00:23.1]} 31... Nxd5 {[%clk
0:00:03.2]} 32. Qxd5 {[%clk 0:00:24]} 32... Rc2 {[%clk 0:00:03]} 33. Rf1 {[%clk
0:00:19.7]} 33... Rc5 {[%clk 0:00:00.9]} 34. Qa2 {[%clk 0:00:19.8]} 34... Kg7
{[%clk 0:00:00.1]} 35. a7 {[%clk 0:00:20]} 1-0

[Event "Early-Titled-Tuesday-Blitz-May-14-2024"]
[Site "Chess.com"]
[Date "2024.05.14"]
[Round "11"]
[White "Raud100"]
[Black "emeli_chess"]
[Result "0-1"]
[WhiteElo "2349"]
[BlackElo "2433"]
[TimeControl "180+1"]
[EndTime "10:07:44 PDT"]
[Termination "emeli_chess won by resignation"]

1. d4 {[%clk 0:03:00.9]} 1... Nf6 {[%clk 0:02:59.2]} 2. c4 {[%clk 0:03:00.9]}
2... e6 {[%clk 0:02:59.3]} 3. Nc3 {[%clk 0:03:01.2]} 3... Bb4 {[%clk 0:02:58.9]}
4. Qc2 {[%clk 0:03:01.2]} 4... c5 {[%clk 0:02:58.2]} 5. dxc5 {[%clk 0:03:00.3]}
5... O-O {[%clk 0:02:58.2]} 6. a3 {[%clk 0:02:59.4]} 6... Bxc5 {[%clk
0:02:54.3]} 7. b4 {[%clk 0:02:59.1]} 7... Be7 {[%clk 0:02:54.2]} 8. Nf3 {[%clk
0:02:59]} 8... b6 {[%clk 0:02:53.7]} 9. e3 {[%clk 0:02:58.8]} 9... Bb7 {[%clk
0:02:53.6]} 10. Be2 {[%clk 0:02:56.2]} 10... d6 {[%clk 0:02:52.6]} 11. O-O
{[%clk 0:02:55.8]} 11... Nbd7 {[%clk 0:02:52.4]} 12. Bb2 {[%clk 0:02:55.6]}
12... a6 {[%clk 0:02:52.6]} 13. Rfd1 {[%clk 0:02:55.1]} 13... Qc7 {[%clk
0:02:52.6]} 14. Rac1 {[%clk 0:02:53.9]} 14... Rac8 {[%clk 0:02:52.3]} 15. Qb3
{[%clk 0:02:53.6]} 15... Qb8 {[%clk 0:02:52.2]} 16. Nd4 {[%clk 0:02:52.2]} 16...
Bd8 {[%clk 0:02:48.7]} 17. f3 {[%clk 0:02:50.2]} 17... Bc7 {[%clk 0:02:48]} 18.
h3 {[%clk 0:02:49.2]} 18... d5 {[%clk 0:02:33]} 19. cxd5 {[%clk 0:02:47.2]}
19... exd5 {[%clk 0:02:28.2]} 20. Nf5 {[%clk 0:02:36.9]} 20... Rfe8 {[%clk
0:02:21.7]} 21. Bf1 {[%clk 0:01:56.8]} 21... b5 {[%clk 0:02:16.8]} 22. Ne2
{[%clk 0:01:52.1]} 22... Nb6 {[%clk 0:02:09.6]} 23. Bxf6 {[%clk 0:01:42.1]}
23... gxf6 {[%clk 0:02:09.5]} 24. Ned4 {[%clk 0:01:42.1]} 24... Nc4 {[%clk
0:02:06.7]} 25. Qd3 {[%clk 0:01:40.3]} 25... Kh8 {[%clk 0:02:03]} 26. Qe2 {[%clk
0:01:36.4]} 26... Re5 {[%clk 0:01:46.3]} 27. Qf2 {[%clk 0:01:35.2]} 27... Rg8
{[%clk 0:01:44.8]} 28. f4 {[%clk 0:01:24.4]} 28... Ree8 {[%clk 0:01:37]} 29. Re1
{[%clk 0:01:20.8]} 29... Rg6 {[%clk 0:01:36.1]} 30. Bd3 {[%clk 0:01:18.7]} 30...
Reg8 {[%clk 0:01:27.8]} 31. Ne7 {[%clk 0:01:09.5]} 31... Rxg2+ {[%clk
0:01:26.6]} 32. Qxg2 {[%clk 0:01:10.4]} 32... Rxg2+ {[%clk 0:01:26.3]} 33. Kxg2
{[%clk 0:01:11.3]} 33... Nxe3+ {[%clk 0:01:07.9]} 34. Rxe3 {[%clk 0:01:09.7]}
34... Bxf4 {[%clk 0:01:07.9]} 35. Rce1 {[%clk 0:01:03.4]} 35... Bxe3 {[%clk
0:01:07.8]} 36. Rxe3 {[%clk 0:01:04.3]} 36... Qf4 {[%clk 0:01:05.4]} 37. Nef5
{[%clk 0:01:02.1]} 37... h5 {[%clk 0:01:03.1]} 38. Re8+ {[%clk 0:00:51.6]} 38...
Kh7 {[%clk 0:01:03.1]} 39. Re7 {[%clk 0:00:52.5]} 39... Bc8 {[%clk 0:00:58]} 40.
Rxf7+ {[%clk 0:00:48]} 40... Kg8 {[%clk 0:00:58.4]} 41. Rc7 {[%clk 0:00:14.9]}
41... Bxf5 {[%clk 0:00:57.1]} 42. Nxf5 {[%clk 0:00:15.8]} 42... Qd2+ {[%clk
0:00:56.9]} 43. Kg1 {[%clk 0:00:09.3]} 43... Qxd3 {[%clk 0:00:56.6]} 44. Ne7+
{[%clk 0:00:09.6]} 44... Kf8 {[%clk 0:00:52.1]} 45. Rb7 {[%clk 0:00:05.7]} 45...
Qe3+ {[%clk 0:00:50.1]} 46. Kh2 {[%clk 0:00:05.3]} 46... Qxe7 {[%clk 0:00:50.1]}
47. Rxe7 {[%clk 0:00:04.9]} 47... Kxe7 {[%clk 0:00:50]} 0-1

[Event "Early-Titled-Tuesday-Blitz-May-14-2024"]
[Site "Chess.com"]
[Date "2024.05.14"]
[Round "11"]
[White "Flameboard08"]
[Black "Stanbad1"]
[Result "1-0"]
[WhiteElo "2706"]
[BlackElo "2601"]
[TimeControl "180+1"]
[EndTime "10:07:51 PDT"]
[Termination "Flameboard08 won by resignation"]

1. f4 {[%clk 0:02:55.8]} 1... d5 {[%clk 0:02:58.6]} 2. Nf3 {[%clk 0:02:56.4]}
2... g6 {[%clk 0:02:58.8]} 3. d3 {[%clk 0:02:56.5]} 3... c5 {[%clk 0:02:58.9]}
4. g3 {[%clk 0:02:56.9]} 4... Bg7 {[%clk 0:02:58.7]} 5. Bg2 {[%clk 0:02:53.6]}
5... Nc6 {[%clk 0:02:58.4]} 6. O-O {[%clk 0:02:53.9]} 6... Nf6 {[%clk
0:02:57.9]} 7. Nbd2 {[%clk 0:02:53.8]} 7... O-O {[%clk 0:02:57.2]} 8. e4 {[%clk
0:02:53.1]} 8... dxe4 {[%clk 0:02:51.6]} 9. dxe4 {[%clk 0:02:53.2]} 9... a6
{[%clk 0:02:46]} 10. h3 {[%clk 0:02:49.8]} 10... b5 {[%clk 0:02:45]} 11. e5
{[%clk 0:02:49.3]} 11... Nd5 {[%clk 0:02:44.3]} 12. Ne4 {[%clk 0:02:49.7]} 12...
c4 {[%clk 0:02:38]} 13. c3 {[%clk 0:02:47.3]} 13... e6 {[%clk 0:02:33.2]} 14. h4
{[%clk 0:02:44.9]} 14... Qb6+ {[%clk 0:02:32.5]} 15. Kh2 {[%clk 0:02:44.8]}
15... Nce7 {[%clk 0:02:30.9]} 16. g4 {[%clk 0:02:40.8]} 16... Bb7 {[%clk
0:02:21.8]} 17. Nd6 {[%clk 0:02:40.9]} 17... Rfd8 {[%clk 0:02:20.4]} 18. Nd4
{[%clk 0:02:40.9]} 18... Rxd6 {[%clk 0:02:16.2]} 19. exd6 {[%clk 0:02:40.1]}
19... Qxd6 {[%clk 0:02:17.1]} 20. Ne2 {[%clk 0:02:33.8]} 20... Rd8 {[%clk
0:02:15.7]} 21. Qe1 {[%clk 0:02:27.1]} 21... e5 {[%clk 0:02:10.7]} 22. Qg3
{[%clk 0:02:25.2]} 22... f5 {[%clk 0:02:06.3]} 23. g5 {[%clk 0:02:20.6]} 23...
e4 {[%clk 0:01:56.3]} 24. Be3 {[%clk 0:02:17]} 24... Nxe3 {[%clk 0:01:53.2]} 25.
Qxe3 {[%clk 0:02:17.9]} 25... Qd2 {[%clk 0:01:49.3]} 26. Qf2 {[%clk 0:02:14.5]}
26... e3 {[%clk 0:01:47.9]} 27. Qe1 {[%clk 0:02:13.7]} 27... Bxg2 {[%clk
0:01:45.8]} 28. Kxg2 {[%clk 0:02:13.8]} 28... Qxb2 {[%clk 0:01:45.6]} 29. Rd1
{[%clk 0:02:05.7]} 29... Rd2 {[%clk 0:01:42.9]} 30. Rxd2 {[%clk 0:02:05.7]}
30... exd2 {[%clk 0:01:43.8]} 31. Qd1 {[%clk 0:01:53]} 31... Nd5 {[%clk
0:01:42.2]} 32. Rf3 {[%clk 0:01:49.5]} 32... Bxc3 {[%clk 0:01:38]} 33. h5 {[%clk
0:01:27]} 33... Bd4 {[%clk 0:01:36.5]} 34. h6 {[%clk 0:01:17.2]} 34... Ne3+
{[%clk 0:01:31.8]} 35. Rxe3 {[%clk 0:01:17.5]} 35... Bxe3 {[%clk 0:01:32.7]} 36.
Kg3 {[%clk 0:01:18.1]} 36... c3 {[%clk 0:01:28.7]} 37. Qh1 {[%clk 0:01:17.7]}
37... d1=Q {[%clk 0:01:15.9]} 38. Qxd1 {[%clk 0:01:11.2]} 38... Qd2 {[%clk
0:01:13.9]} 39. Qh1 {[%clk 0:01:09.8]} 39... Bxf4+ {[%clk 0:01:04.1]} 40. Nxf4
{[%clk 0:01:00]} 40... Qe3+ {[%clk 0:01:03.2]} 41. Qf3 {[%clk 0:01:00.4]} 41...
Qxf3+ {[%clk 0:00:26]} 42. Kxf3 {[%clk 0:01:01.3]} 42... b4 {[%clk 0:00:25.8]}
43. Ke3 {[%clk 0:00:58.7]} 43... a5 {[%clk 0:00:25.7]} 44. Kd3 {[%clk
0:00:58.1]} 44... a4 {[%clk 0:00:25.7]} 45. Nd5 {[%clk 0:00:48.6]} 45... b3
{[%clk 0:00:16.7]} 46. axb3 {[%clk 0:00:48.3]} 46... axb3 {[%clk 0:00:17.2]} 47.
Kxc3 {[%clk 0:00:48.3]} 47... Kf7 {[%clk 0:00:15.5]} 48. Nf4 {[%clk 0:00:48.2]}
48... Ke7 {[%clk 0:00:15]} 49. Kxb3 {[%clk 0:00:48.3]} 49... Kd6 {[%clk
0:00:15.3]} 50. Nxg6 {[%clk 0:00:48.8]} 50... Ke6 {[%clk 0:00:15.4]} 51. Nf4+
{[%clk 0:00:48.6]} 51... Ke5 {[%clk 0:00:15.3]} 52. g6 {[%clk 0:00:49.2]} 52...
Kf6 {[%clk 0:00:15.5]} 53. gxh7 {[%clk 0:00:49.5]} 1-0

[Event "Early-Titled-Tuesday-Blitz-May-14-2024"]
[Site "Chess.com"]
[Date "2024.05.14"]
[Round "11"]
[White "Arhan_Anand"]
[Black "HeroWilczek"]
[Result "1-0"]
[WhiteElo "2637"]
[BlackElo "2538"]
[TimeControl "180+1"]
[EndTime "10:07:58 PDT"]
[Termination "Arhan_Anand won by resignation"]

1. d4 {[%clk 0:03:00.9]} 1... Nf6 {[%clk 0:02:59.2]} 2. c4 {[%clk 0:03:00.9]}
2... c5 {[%clk 0:02:59.9]} 3. d5 {[%clk 0:03:00.7]} 3... b5 {[%clk 0:03:00.2]}
4. cxb5 {[%clk 0:03:01.2]} 4... a6 {[%clk 0:03:00.8]} 5. bxa6 {[%clk 0:03:02.1]}
5... Bxa6 {[%clk 0:03:01.6]} 6. Nc3 {[%clk 0:03:01.8]} 6... g6 {[%clk 0:03:02]}
7. Nf3 {[%clk 0:03:01.6]} 7... Bg7 {[%clk 0:03:01.6]} 8. e4 {[%clk 0:03:01.7]}
8... Bxf1 {[%clk 0:03:02.5]} 9. Kxf1 {[%clk 0:03:02.4]} 9... d6 {[%clk
0:03:03.3]} 10. g3 {[%clk 0:03:02.6]} 10... O-O {[%clk 0:03:04]} 11. Kg2 {[%clk
0:03:02.6]} 11... Nbd7 {[%clk 0:03:04.9]} 12. a4 {[%clk 0:03:02.9]} 12... Qa5
{[%clk 0:03:05.5]} 13. Qc2 {[%clk 0:03:01.2]} 13... Rfb8 {[%clk 0:03:05.9]} 14.
Bd2 {[%clk 0:03:00.8]} 14... Qb4 {[%clk 0:03:05.2]} 15. Rhb1 {[%clk 0:02:59.8]}
15... Qb3 {[%clk 0:03:04.9]} 16. Qxb3 {[%clk 0:02:47.9]} 16... Rxb3 {[%clk
0:03:05.8]} 17. Be1 {[%clk 0:02:48]} 17... Ng4 {[%clk 0:02:58.1]} 18. Nd1 {[%clk
0:02:31.6]} 18... Nge5 {[%clk 0:02:52.7]} 19. Nd2 {[%clk 0:02:30.2]} 19... Rb7
{[%clk 0:02:51.6]} 20. Ra3 {[%clk 0:02:28.1]} 20... Nb6 {[%clk 0:02:45.9]} 21.
b3 {[%clk 0:02:22.8]} 21... Nd3 {[%clk 0:02:37.2]} 22. Ne3 {[%clk 0:02:20.4]}
22... Bc3 {[%clk 0:02:17.4]} 23. Kf1 {[%clk 0:01:41.2]} 23... Nxe1 {[%clk
0:02:13.3]} 24. Kxe1 {[%clk 0:01:40.8]} 24... Nxa4 {[%clk 0:02:08.5]} 25. Ke2
{[%clk 0:01:15.1]} 25... Bxd2 {[%clk 0:01:52]} 26. Kxd2 {[%clk 0:01:16]} 26...
Nb6 {[%clk 0:01:52.1]} 27. Rba1 {[%clk 0:01:13.8]} 27... Rxa3 {[%clk 0:01:50.3]}
28. Rxa3 {[%clk 0:01:14.7]} 28... Kg7 {[%clk 0:01:50.5]} 29. Kc3 {[%clk
0:01:14.7]} 29... Nd7 {[%clk 0:01:44.4]} 30. Nc4 {[%clk 0:01:13.1]} 30... g5
{[%clk 0:01:43]} 31. f3 {[%clk 0:01:11.9]} 31... h5 {[%clk 0:01:42.8]} 32. Kd3
{[%clk 0:00:53.8]} 32... Kf6 {[%clk 0:01:39.9]} 33. Nd2 {[%clk 0:00:49.9]} 33...
Ne5+ {[%clk 0:01:38.3]} 34. Ke3 {[%clk 0:00:48.3]} 34... Rb4 {[%clk 0:01:33.7]}
35. Ra4 {[%clk 0:00:41.5]} 35... Rb7 {[%clk 0:01:27]} 36. h3 {[%clk 0:00:39.8]}
36... e6 {[%clk 0:01:22.9]} 37. f4 {[%clk 0:00:39.6]} 37... gxf4+ {[%clk
0:01:20.8]} 38. gxf4 {[%clk 0:00:40.5]} 38... Ng6 {[%clk 0:01:20.2]} 39. Ra6
{[%clk 0:00:38.8]} 39... Ke7 {[%clk 0:01:14.5]} 40. dxe6 {[%clk 0:00:37.5]}
40... fxe6 {[%clk 0:01:13.1]} 41. Ra8 {[%clk 0:00:37.4]} 41... h4 {[%clk
0:01:03.7]} 42. f5 {[%clk 0:00:34.1]} 42... exf5 {[%clk 0:01:00.3]} 43. exf5
{[%clk 0:00:35]} 43... Ne5 {[%clk 0:00:59.8]} 44. Kf4 {[%clk 0:00:35.1]} 44...
Kf6 {[%clk 0:00:54.8]} 45. Ne4+ {[%clk 0:00:34.6]} 45... Ke7 {[%clk 0:00:54]}
46. f6+ {[%clk 0:00:28]} 46... Kd7 {[%clk 0:00:45.8]} 47. Nxc5+ {[%clk
0:00:26.4]} 47... dxc5 {[%clk 0:00:43.6]} 48. Kxe5 {[%clk 0:00:27.3]} 1-0

[Event "Early-Titled-Tuesday-Blitz-May-14-2024"]
[Site "Chess.com"]
[Date "2024.05.14"]
[Round "11"]
[White "AryanTari"]
[Black "the_chess_child"]
[Result "0-1"]
[WhiteElo "3040"]
[BlackElo "2911"]
[TimeControl "180+1"]
[EndTime "10:07:59 PDT"]
[Termination "the_chess_child won on time"]

1. e4 {[%clk 0:03:00.9]} 1... c5 {[%clk 0:02:59.1]} 2. Nf3 {[%clk 0:02:58.6]}
2... e6 {[%clk 0:02:59.4]} 3. d4 {[%clk 0:02:58.4]} 3... cxd4 {[%clk 0:03:00.3]}
4. Nxd4 {[%clk 0:02:59.3]} 4... Nf6 {[%clk 0:03:00]} 5. Nc3 {[%clk 0:02:57]}
5... Nc6 {[%clk 0:03:00.2]} 6. Qd3 {[%clk 0:02:57.3]} 6... d5 {[%clk 0:02:57.8]}
7. exd5 {[%clk 0:02:43.5]} 7... Nb4 {[%clk 0:02:57.7]} 8. Qg3 {[%clk 0:02:39]}
8... Nfxd5 {[%clk 0:02:47.2]} 9. Bb5+ {[%clk 0:02:26.3]} 9... Bd7 {[%clk
0:02:46.3]} 10. O-O {[%clk 0:02:22.3]} 10... a6 {[%clk 0:02:38.5]} 11. Bxd7+
{[%clk 0:02:19.7]} 11... Qxd7 {[%clk 0:02:39.4]} 12. Rd1 {[%clk 0:02:12.9]}
12... Nxc2 {[%clk 0:02:07]} 13. Rb1 {[%clk 0:01:16.2]} 13... Nxd4 {[%clk
0:01:29.8]} 14. Rxd4 {[%clk 0:01:17.1]} 14... Bc5 {[%clk 0:01:28.8]} 15. Nxd5
{[%clk 0:01:05.6]} 15... Bxd4 {[%clk 0:01:15.7]} 16. Nc7+ {[%clk 0:01:06.1]}
16... Ke7 {[%clk 0:01:16.2]} 17. Nxa8 {[%clk 0:00:54.4]} 17... Rxa8 {[%clk
0:01:17.1]} 18. Bg5+ {[%clk 0:00:47.9]} 18... Kf8 {[%clk 0:01:12.1]} 19. h4
{[%clk 0:00:40.1]} 19... Rc8 {[%clk 0:01:09.1]} 20. Be3 {[%clk 0:00:32.5]} 20...
Bxe3 {[%clk 0:01:05.6]} 21. Qxe3 {[%clk 0:00:33.4]} 21... Qd5 {[%clk 0:01:05.6]}
22. a3 {[%clk 0:00:30.7]} 22... Rc2 {[%clk 0:01:02.6]} 23. Qb6 {[%clk
0:00:28.9]} 23... f6 {[%clk 0:00:57.7]} 24. Re1 {[%clk 0:00:28.7]} 24... Kf7
{[%clk 0:00:57.7]} 25. g3 {[%clk 0:00:28.5]} 25... e5 {[%clk 0:00:55.7]} 26. h5
{[%clk 0:00:23.3]} 26... Qc6 {[%clk 0:00:44.3]} 27. Qb4 {[%clk 0:00:18.6]} 27...
Qc5 {[%clk 0:00:43.1]} 28. Qb3+ {[%clk 0:00:18.1]} 28... Kf8 {[%clk 0:00:40.7]}
29. Qf3 {[%clk 0:00:11.3]} 29... Rxb2 {[%clk 0:00:31.4]} 30. h6 {[%clk
0:00:11.8]} 30... Kf7 {[%clk 0:00:30]} 31. hxg7 {[%clk 0:00:11.1]} 31... Kxg7
{[%clk 0:00:30.4]} 32. Rd1 {[%clk 0:00:10.7]} 32... h5 {[%clk 0:00:21]} 33. Rd7+
{[%clk 0:00:09.6]} 33... Kg6 {[%clk 0:00:21.2]} 34. Qd3+ {[%clk 0:00:04.8]}
34... f5 {[%clk 0:00:19.9]} 35. Qf3 {[%clk 0:00:02.7]} 35... Qc1+ {[%clk
0:00:14.8]} 36. Kg2 {[%clk 0:00:02.2]} 36... e4 {[%clk 0:00:14.6]} 37. Rd6+
{[%clk 0:00:00.9]} 37... Kg5 {[%clk 0:00:15.1]} 0-1